[Event "1st SOA-GM Festival 2024"]
[Site "Bhubaneswar"]
[Date "2024.02.01"]
[Round "2.14"]
[White "Nguyen Van Huy"]
[Black "Pawar, Harshit"]
[Result "1-0"]
[WhiteElo "2364"]
[BlackElo "1945"]
[PlyCount "123"]
[EventDate "2024.02.01"]
[EventType "swiss"]
[EventCountry "IND"]
[TimeControl "5400+30"]

1. d4 {[%emt 0:00:37]} Nf6 {[%emt 0:00:19]} 2. c4 {[%emt 0:00:27]} e6 {[%emt 0:00:22]} 3. Nf3 {[%emt 0:00:35]} d5 {[%emt 0:00:06]} 4. Nc3 {[%emt 0:02:37]} c6 {[%emt 0:01:13]} 5. Bg5 {[%emt 0:01:16]} Be7 {[%emt 0:04:30]} 6. e3 {[%emt 0:01:35]} Nbd7 {[%emt 0:02:22]} 7. Rc1 {[%emt 0:02:06]} O-O {[%emt 0:00:56]} 8. Bd3 {[%emt 0:00:31]} b6 {[%emt 0:05:35]} 9. cxd5 {[%emt 0:01:51]} exd5 {[%emt 0:04:57]} 10. O-O {[%emt 0:01:13]} Bb7 {[%emt 0:00:02]} 11. Qe2 {[%emt 0:02:32]} Ne8 {[%emt 0:16:04]} 12. Bxe7 {[%emt 0:05:33]} Qxe7 {[%emt 0:00:04]} 13. Ba6 {[%emt 0:03:29]} Bxa6 {[%emt 0:00:27]} 14. Qxa6 {[%emt 0:00:10]} Nd6 {[%emt 0:00:03]} 15. Qa4 {[%emt 0:11:41]} Rfc8 {[%emt 0:01:36]} 16. Rfd1 {[%emt 0:00:49]} Qe6 {[%emt 0:10:46]} 17. Ne2 {[%emt 0:04:16]} Ne4 {[%emt 0:00:24]} 18. Nf4 {[%emt 0:03:51]} Qd6 {[%emt 0:00:11]} 19. h3 {[%emt 0:04:08]} h6 {[%emt 0:10:31]} 20. Rc2 {[%emt 0:01:45]} Rc7 {[%emt 0:01:12]} 21. Rdc1 {[%emt 0:03:11]} Rac8 {[%emt 0:00:26]} 22. Qa6 {[%emt 0:00:40]} Ng5 {[%emt 0:02:35]} 23. Qe2 {[%emt 0:06:59]} Nxf3+ {[%emt 0:03:14]} 24. Qxf3 {[%emt 0:00:07]} Nf6 {[%emt 0:00:09]} 25. a3 {[%emt 0:02:06]} c5 {[%emt 0:01:04]} 26. dxc5 {[%emt 0:01:53]} Rxc5 {[%emt 0:00:06]} 27. Rxc5 {[%emt 0:38:02]} Rxc5 {[%emt 0:00:17]} 28. Rd1 {[%emt 0:00:00]} Rc2 {[%emt 0:02:04]} 29. Nxd5 {[%emt 0:00:00]} Nxd5 {[%emt 0:00:20]} 30. Qxd5 {[%emt 0:00:00]} Qxd5 {[%emt 0:00:11]} 31. Rxd5 {[%emt 0:00:00]} Rxb2 {[%emt 0:03:34]} 32. Rd8+ {[%emt 0:00:00]} Kh7 {[%emt 0:00:04]} 33. Rd7 {[%emt 0:00:00]} Kg8 {[%emt 0:00:30]} 34. Rxa7 {[%emt 0:00:00]} h5 {[%emt 0:00:16]} 35. Ra8+ {[%emt 0:00:00]} Kh7 {[%emt 0:00:09]} 36. Ra4 {[%emt 0:00:00]} Ra2 {[%emt 0:00:32]} 37. Rf4 {[%emt 0:00:00]} Kg8 {[%emt 0:01:04]} 38. a4 {[%emt 0:00:00]} g6 {[%emt 0:00:11]} 39. Rb4 {[%emt 0:00:00]} Kg7 {[%emt 0:00:06]} 40. g4 {[%emt 0:00:00]} hxg4 {[%emt 0:02:08]} 41. hxg4 {[%emt 0:00:00]} Kh6 {[%emt 0:00:26]} 42. Kg2 {[%emt 0:00:00]} f6 {[%emt 0:06:14]} 43. Kg3 {[%emt 0:00:00]} Kg7 {[%emt 0:01:04]} 44. f4 {[%emt 0:00:00]} Kf7 {[%emt 0:02:55]} 45. Kf3 {[%emt 0:00:00]} Ke7 {[%emt 0:01:20]} 46. g5 {[%emt 0:00:00]} fxg5 {[%emt 0:01:30]} 47. fxg5 {[%emt 0:00:00]} Kf7 {[%emt 0:00:39]} 48. e4 {[%emt 0:00:00]} Ra1 {[%emt 0:01:09]} 49. Kf4 {[%emt 0:00:00]} Ke7 {[%emt 0:01:52]} 50. Rxb6 {[%emt 0:00:00]} Rxa4 {[%emt 0:00:02]} 51. Rxg6 {[%emt 0:00:00]} Ra5 {[%emt 0:01:07]} 52. Rf6 {[%emt 0:00:00]} Ra1 {[%emt 0:02:27]} 53. Kf5 {[%emt 0:00:00]} Rf1+ {[%emt 0:02:17]} 54. Kg6 {[%emt 0:00:00]} Re1 {[%emt 0:00:03]} 55. Kg7 {[%emt 0:00:00]} Rxe4 {[%emt 0:01:33]} 56. g6 {[%emt 0:00:00]} Re1 {[%emt 0:00:29]} 57. Rf2 {[%emt 0:00:00]} Re3 {[%emt 0:01:55]} 58. Kg8 {[%emt 0:00:00]} Rg3 {[%emt 0:01:09]} 59. g7 {[%emt 0:00:00]} Rg1 {[%emt 0:00:29]} 60. Re2+ {[%emt 0:00:00]} Kd6 {[%emt 0:00:47]} 61. Rh2 {[%emt 0:00:00]} Ke6 {[%emt 0:00:27]} 62. Kh8 {[%emt 0:00:00]} 1-0

[Event "1st SOA-GM Festival 2024"]
[Site "Bhubaneswar"]
[Date "2024.02.01"]
[Round "2.15"]
[White "Sharnarthi Viresh"]
[Black "Shahil Dey"]
[Result "1/2-1/2"]
[WhiteElo "1926"]
[BlackElo "2363"]
[PlyCount "105"]
[EventDate "2024.02.01"]
[EventType "swiss"]
[EventCountry "IND"]
[TimeControl "5400+30"]

1. d4 {[%emt 0:00:04]} Nf6 {[%emt 0:00:04]} 2. Nf3 {[%emt 0:00:14]} g6 {[%emt 0:00:05]} 3. c4 {[%emt 0:00:04]} Bg7 {[%emt 0:00:06]} 4. g3 {[%emt 0:00:06]} O-O {[%emt 0:00:06]} 5. Bg2 {[%emt 0:00:02]} c5 {[%emt 0:00:05]} 6. d5 {[%emt 0:00:07]} b5 {[%emt 0:00:04]} 7. cxb5 {[%emt 0:02:16]} a6 {[%emt 0:00:08]} 8. b6 {[%emt 0:01:21]} d6 {[%emt 0:00:06]} 9. a4 {[%emt 0:04:31]} a5 {[%emt 0:00:35]} 10. Nfd2 {[%emt 0:03:56]} Nbd7 {[%emt 0:01:27]} 11. Nc3 {[%emt 0:09:23]} Ba6 {[%emt 0:04:37]} 12. O-O {[%emt 0:08:15]} Rb8 {[%emt 0:02:28]} 13. Nb5 {[%emt 0:04:05]} Nxb6 {[%emt 0:00:08]} 14. Nb3 {[%emt 0:00:50]} Nxa4 {[%emt 0:03:37]} 15. Na7 {[%emt 0:00:30]} Qb6 {[%emt 0:27:07]} 16. Nc6 {[%emt 0:00:05]} Nxb2 {[%emt 0:11:34]} 17. Bxb2 {[%emt 0:00:22]} Qxb3 {[%emt 0:00:04]} 18. Nxb8 {[%emt 0:00:42]} Qxd1 {[%emt 0:03:52]} 19. Rfxd1 {[%emt 0:00:29]} Rxb8 {[%emt 0:00:07]} 20. Rd2 {[%emt 0:02:25]} Bc4 {[%emt 0:03:32]} 21. Rxa5 {[%emt 0:00:46]} Nxd5 {[%emt 0:00:49]} 22. Bxd5 {[%emt 0:03:35]} Bxd5 {[%emt 0:00:11]} 23. Rxd5 {[%emt 0:00:46]} Bxb2 {[%emt 0:00:37]} 24. Ra7 {[%emt 0:01:51]} Kf8 {[%emt 0:00:50]} 25. Rc7 {[%emt 0:00:50]} Ke8 {[%emt 0:00:05]} 26. e3 {[%emt 0:03:34]} Bc3 {[%emt 0:02:13]} 27. Kf1 {[%emt 0:01:27]} Ba5 {[%emt 0:00:19]} 28. Ra7 {[%emt 0:00:07]} Bb6 {[%emt 0:00:05]} 29. Ra4 {[%emt 0:00:20]} Kd7 {[%emt 0:00:12]} 30. Ke2 {[%emt 0:05:43]} Kc6 {[%emt 0:00:37]} 31. Rd1 {[%emt 0:00:39]} d5 {[%emt 0:00:17]} 32. Kd3 {[%emt 0:00:14]} e5 {[%emt 0:01:14]} 33. e4 {[%emt 0:01:04]} Kb5 {[%emt 0:00:04]} 34. Ra2 {[%emt 0:05:15]} c4+ {[%emt 0:00:21]} 35. Kc2 {[%emt 0:00:25]} d4 {[%emt 0:00:06]} 36. Rb1+ {[%emt 0:01:15]} Kc6 {[%emt 0:05:23]} 37. Ra4 {[%emt 0:00:19]} Kc5 {[%emt 0:02:18]} 38. Rbb4 {[%emt 0:00:49]} c3 {[%emt 0:03:18]} 39. Kd3 {[%emt 0:00:26]} f5 {[%emt 0:00:08]} 40. Rc4+ {[%emt 0:00:33]} Kd6 {[%emt 0:00:18]} 41. Rab4 {[%emt 0:00:04]} fxe4+ {[%emt 0:09:54]} 42. Kxe4 {[%emt 0:00:05]} Bc7 {[%emt 0:01:16]} 43. f4 {[%emt 0:00:04]} Rxb4 {[%emt 0:03:55]} 44. fxe5+ {[%emt 0:00:05]} Ke6 {[%emt 0:01:07]} 45. Rxb4 {[%emt 0:00:01]} Bxe5 {[%emt 0:00:33]} 46. Rb6+ {[%emt 0:00:51]} Kf7 {[%emt 0:03:31]} 47. Rc6 {[%emt 0:00:47]} Bf6 {[%emt 0:01:34]} 48. Rc7+ {[%emt 0:00:29]} Kg8 {[%emt 0:00:08]} 49. g4 {[%emt 0:01:51]} Kh8 {[%emt 0:04:57]} 50. h3 {[%emt 0:00:28]} Kg8 {[%emt 0:00:21]} 51. g5 {[%emt 0:02:03]} Bxg5 {[%emt 0:00:19]} 52. Kxd4 {[%emt 0:00:02]} Bf6+ {[%emt 0:00:07]} 53. Kd5 {[%emt 0:00:04]} 1/2-1/2

[Event "1st SOA-GM Festival 2024"]
[Site "Bhubaneswar"]
[Date "2024.02.01"]
[Round "2.16"]
[White "Manish Anto Cristiano F"]
[Black "Majumder Shrayan"]
[Result "1-0"]
[WhiteElo "2349"]
[BlackElo "1916"]
[PlyCount "85"]
[EventDate "2024.02.01"]
[EventType "swiss"]
[EventCountry "IND"]
[TimeControl "5400+30"]

1. c4 {[%emt 0:00:03]} e6 {[%emt 0:01:20]} 2. g3 {[%emt 0:00:30]} d5 {[%emt 0:00:09]} 3. Bg2 {[%emt 0:00:12]} Nf6 {[%emt 0:00:54]} 4. Nf3 {[%emt 0:00:36]} d4 {[%emt 0:03:11]} 5. e3 {[%emt 0:00:10]} c5 {[%emt 0:06:46]} 6. exd4 {[%emt 0:00:34]} cxd4 {[%emt 0:00:13]} 7. O-O {[%emt 0:00:10]} Nc6 {[%emt 0:04:41]} 8. d3 {[%emt 0:00:13]} Bd6 {[%emt 0:04:38]} 9. Bg5 {[%emt 0:00:14]} h6 {[%emt 0:02:31]} 10. Bxf6 {[%emt 0:00:13]} Qxf6 {[%emt 0:00:19]} 11. Nbd2 {[%emt 0:00:19]} Qd8 {[%emt 0:02:43]} 12. a3 {[%emt 0:00:58]} a5 {[%emt 0:00:27]} 13. Rc1 {[%emt 0:00:35]} O-O {[%emt 0:01:21]} 14. Re1 {[%emt 0:02:23]} Re8 {[%emt 0:04:45]} 15. c5 {[%emt 0:02:17]} Bf8 {[%emt 0:10:06]} 16. h4 {[%emt 0:03:58]} a4 {[%emt 0:06:11]} 17. Rc4 {[%emt 0:10:14]} Qa5 {[%emt 0:16:17]} 18. Qc2 {[%emt 0:20:47]} e5 {[%emt 0:06:46]} 19. Nxd4 {[%emt 0:01:54]} Nxd4 {[%emt 0:00:09]} 20. Rxd4 {[%emt 0:00:05]} exd4 {[%emt 0:15:42]} 21. Rxe8 {[%emt 0:00:11]} Be6 {[%emt 0:00:19]} 22. Rxa8 {[%emt 0:02:45]} Qxa8 {[%emt 0:00:03]} 23. c6 {[%emt 0:06:14]} bxc6 {[%emt 0:00:08]} 24. Bxc6 {[%emt 0:00:24]} Qa6 {[%emt 0:02:48]} 25. Bxa4 {[%emt 0:02:14]} Bf5 {[%emt 0:04:37]} 26. Qc4 {[%emt 0:03:30]} Bxd3 {[%emt 0:00:24]} 27. Qxd4 {[%emt 0:00:20]} Bg6 {[%emt 0:02:41]} 28. Bb3 {[%emt 0:01:41]} Qc8 {[%emt 0:00:50]} 29. Bc4 {[%emt 0:01:37]} Bc5 {[%emt 0:00:59]} 30. Qd5 {[%emt 0:00:22]} h5 {[%emt 0:01:14]} 31. Ne4 {[%emt 0:01:23]} Be7 {[%emt 0:00:42]} 32. a4 {[%emt 0:03:19]} Qg4 {[%emt 0:00:30]} 33. Bd3 {[%emt 0:04:00]} Bxh4 {[%emt 0:02:02]} 34. Qa8+ {[%emt 0:00:35]} Kh7 {[%emt 0:00:06]} 35. f3 {[%emt 0:00:10]} Qd7 {[%emt 0:00:57]} 36. gxh4 {[%emt 0:00:12]} Qd4+ {[%emt 0:00:26]} 37. Kh1 {[%emt 0:01:21]} f6 {[%emt 0:00:24]} 38. Qa6 {[%emt 0:02:34]} Qxb2 {[%emt 0:00:34]} 39. Qb5 {[%emt 0:00:47]} Qc1+ {[%emt 0:00:18]} 40. Kg2 {[%emt 0:00:08]} Qf4 {[%emt 0:00:46]} 41. Nxf6+ {[%emt 0:00:44]} Kh6 {[%emt 0:00:32]} 42. Qxh5+ {[%emt 0:02:02]} Bxh5 {[%emt 0:00:10]} 43. Ng8# {[%emt 0:00:04]} 1-0

[Event "1st SOA-GM Festival 2024"]
[Site "Bhubaneswar"]
[Date "2024.02.01"]
[Round "2.17"]
[White "Singgih, Diajeng Theresa"]
[Black "Soham Kamotra"]
[Result "0-1"]
[WhiteElo "1867"]
[BlackElo "2348"]
[PlyCount "118"]
[EventDate "2024.02.01"]
[EventType "swiss"]
[EventCountry "IND"]
[TimeControl "5400+30"]

1. e4 {[%emt 0:00:54]} c6 {[%emt 0:00:06]} 2. d4 {[%emt 0:00:03]} d5 {[%emt 0:00:04]} 3. exd5 {[%emt 0:00:47]} cxd5 {[%emt 0:00:08]} 4. Bd3 {[%emt 0:00:13]} Nf6 {[%emt 0:00:14]} 5. c3 {[%emt 0:00:59]} Bg4 {[%emt 0:00:39]} 6. Ne2 {[%emt 0:00:23]} e6 {[%emt 0:02:21]} 7. O-O {[%emt 0:01:20]} Bd6 {[%emt 0:01:27]} 8. f3 {[%emt 0:04:06]} Bh5 {[%emt 0:01:24]} 9. Bf4 {[%emt 0:02:22]} Bg6 {[%emt 0:04:28]} 10. Na3 {[%emt 0:03:52]} Bxd3 {[%emt 0:11:28]} 11. Qxd3 {[%emt 0:00:14]} Bxa3 {[%emt 0:00:19]} 12. bxa3 {[%emt 0:00:19]} O-O {[%emt 0:00:11]} 13. Rab1 {[%emt 0:01:06]} Qc8 {[%emt 0:02:36]} 14. Qb5 {[%emt 0:00:53]} b6 {[%emt 0:00:19]} 15. Rfc1 {[%emt 0:00:11]} Qc6 {[%emt 0:06:47]} 16. a4 {[%emt 0:01:21]} Rc8 {[%emt 0:01:30]} 17. a5 {[%emt 0:02:37]} Nbd7 {[%emt 0:01:05]} 18. g4 {[%emt 0:06:06]} Ne8 {[%emt 0:05:42]} 19. Ng3 {[%emt 0:05:34]} Qxb5 {[%emt 0:03:58]} 20. Rxb5 {[%emt 0:00:02]} Rc4 {[%emt 0:00:24]} 21. Rb4 {[%emt 0:02:10]} Rc6 {[%emt 0:02:52]} 22. a4 {[%emt 0:03:09]} bxa5 {[%emt 0:03:12]} 23. Rb5 {[%emt 0:01:40]} Nd6 {[%emt 0:00:49]} 24. Rxa5 {[%emt 0:01:52]} a6 {[%emt 0:01:06]} 25. Bxd6 {[%emt 0:02:39]} Rxd6 {[%emt 0:00:38]} 26. c4 {[%emt 0:00:36]} Rc6 {[%emt 0:00:07]} 27. Ne2 {[%emt 0:03:13]} dxc4 {[%emt 0:01:18]} 28. d5 {[%emt 0:01:35]} exd5 {[%emt 0:00:11]} 29. Rxd5 {[%emt 0:00:08]} Nb6 {[%emt 0:00:27]} 30. Nd4 {[%emt 0:01:53]} Nxd5 {[%emt 0:03:55]} 31. Nxc6 {[%emt 0:00:05]} c3 {[%emt 0:00:03]} 32. Kf2 {[%emt 0:05:24]} Rc8 {[%emt 0:00:39]} 33. Rxc3 {[%emt 0:00:15]} Nxc3 {[%emt 0:00:09]} 34. Ne7+ {[%emt 0:00:03]} Kf8 {[%emt 0:00:06]} 35. Nxc8 {[%emt 0:00:05]} Nxa4 {[%emt 0:00:04]} 36. Ke3 {[%emt 0:00:37]} Ke8 {[%emt 0:01:52]} 37. Nd6+ {[%emt 0:00:35]} Ke7 {[%emt 0:00:14]} 38. Nf5+ {[%emt 0:00:29]} Kf6 {[%emt 0:00:07]} 39. h4 {[%emt 0:01:27]} g6 {[%emt 0:06:10]} 40. Nd6 {[%emt 0:01:04]} Ke6 {[%emt 0:01:34]} 41. Ne4 {[%emt 0:00:26]} h6 {[%emt 0:00:05]} 42. Kd4 {[%emt 0:01:03]} f5 {[%emt 0:00:15]} 43. Nf2 {[%emt 0:02:01]} Nb6 {[%emt 0:04:33]} 44. Nd3 {[%emt 0:01:17]} a5 {[%emt 0:01:42]} 45. Nf4+ {[%emt 0:10:07]} Kf6 {[%emt 0:01:49]} 46. Kc5 {[%emt 0:01:22]} a4 {[%emt 0:01:14]} 47. Nd3 {[%emt 0:22:13]} a3 {[%emt 0:02:25]} 48. Nc1 {[%emt 0:00:33]} Nd7+ {[%emt 0:07:00]} 49. Kd6 {[%emt 0:00:17]} fxg4 {[%emt 0:00:21]} 50. fxg4 {[%emt 0:00:29]} g5 {[%emt 0:00:50]} 51. Kd5 {[%emt 0:11:38]} gxh4 {[%emt 0:00:19]} 52. Ke4 {[%emt 0:00:02]} Kg5 {[%emt 0:00:23]} 53. Kf3 {[%emt 0:00:33]} Ne5+ {[%emt 0:00:17]} 54. Kg2 {[%emt 0:00:17]} Kxg4 {[%emt 0:00:09]} 55. Kh2 {[%emt 0:00:14]} h3 {[%emt 0:00:11]} 56. Na2 {[%emt 0:00:20]} Kh4 {[%emt 0:00:29]} 57. Kh1 {[%emt 0:00:24]} Kg3 {[%emt 0:00:21]} 58. Kg1 {[%emt 0:00:15]} h2+ {[%emt 0:00:11]} 59. Kh1 {[%emt 0:00:04]} Ng4 {[%emt 0:00:07]} 0-1

[Event "1st SOA-GM Festival 2024"]
[Site "Bhubaneswar"]
[Date "2024.02.01"]
[Round "2.18"]
[White "Laxman, R.R."]
[Black "Priansh Das"]
[Result "1-0"]
[WhiteElo "2338"]
[BlackElo "1910"]
[PlyCount "71"]
[EventDate "2024.02.01"]
[EventType "swiss"]
[EventCountry "IND"]
[TimeControl "5400+30"]

1. d4 {[%emt 0:00:03]} Nf6 {[%emt 0:00:08]} 2. c4 {[%emt 0:00:15]} g6 {[%emt 0:00:06]} 3. Nf3 {[%emt 0:00:04]} Bg7 {[%emt 0:00:06]} 4. g3 {[%emt 0:00:13]} O-O {[%emt 0:00:08]} 5. Bg2 {[%emt 0:00:03]} d6 {[%emt 0:00:11]} 6. O-O {[%emt 0:00:09]} c5 {[%emt 0:01:42]} 7. d5 {[%emt 0:04:53]} e6 {[%emt 0:05:04]} 8. Nc3 {[%emt 0:01:34]} exd5 {[%emt 0:00:13]} 9. cxd5 {[%emt 0:00:07]} a6 {[%emt 0:06:25]} 10. a4 {[%emt 0:00:34]} Nbd7 {[%emt 0:01:46]} 11. Nd2 {[%emt 0:01:34]} Rb8 {[%emt 0:03:47]} 12. Nc4 {[%emt 0:00:35]} Ne8 {[%emt 0:02:01]} 13. Bf4 {[%emt 0:01:52]} Nb6 {[%emt 0:04:06]} 14. Nxb6 {[%emt 0:01:02]} Qxb6 {[%emt 0:00:05]} 15. Qd2 {[%emt 0:00:11]} Qd8 {[%emt 0:01:45]} 16. Bh6 {[%emt 0:03:32]} Nf6 {[%emt 0:04:35]} 17. Bxg7 {[%emt 0:00:05]} Kxg7 {[%emt 0:00:04]} 18. e4 {[%emt 0:02:44]} b5 {[%emt 0:09:19]} 19. axb5 {[%emt 0:00:08]} axb5 {[%emt 0:00:06]} 20. b4 {[%emt 0:02:05]} Nd7 {[%emt 0:06:10]} 21. Rfb1 {[%emt 0:03:35]} Qf6 {[%emt 0:02:35]} 22. f4 {[%emt 0:00:42]} cxb4 {[%emt 0:07:59]} 23. Rxb4 {[%emt 0:00:44]} Nc5 {[%emt 0:00:44]} 24. Re1 {[%emt 0:07:49]} Re8 {[%emt 0:07:31]} 25. Rxb5 {[%emt 0:01:09]} Ra8 {[%emt 0:25:30]} 26. e5 {[%emt 0:02:54]} Qd8 {[%emt 0:03:33]} 27. Qd4 {[%emt 0:06:29]} Bf5 {[%emt 0:06:25]} 28. exd6+ {[%emt 0:02:08]} Kh6 {[%emt 0:01:16]} 29. Rf1 {[%emt 0:01:59]} Nd7 {[%emt 0:00:48]} 30. h3 {[%emt 0:00:17]} Nf6 {[%emt 0:00:37]} 31. Rb7 {[%emt 0:02:15]} Rf8 {[%emt 0:00:41]} 32. g4 {[%emt 0:00:15]} Bxg4 {[%emt 0:00:06]} 33. hxg4 {[%emt 0:00:04]} Nxg4 {[%emt 0:00:05]} 34. Rf3 {[%emt 0:00:08]} Ra1+ {[%emt 0:00:21]} 35. Nb1 {[%emt 0:00:26]} Nf6 {[%emt 0:00:38]} 36. Qxa1 {[%emt 0:00:04]} 1-0

[Event "1st SOA-GM Festival 2024"]
[Site "Bhubaneswar"]
[Date "2024.02.01"]
[Round "2.19"]
[White "Goutham Krishna H"]
[Black "Jake Shanty"]
[Result "1-0"]
[WhiteElo "2288"]
[BlackElo "1903"]
[PlyCount "173"]
[EventDate "2024.02.01"]
[EventType "swiss"]
[EventCountry "IND"]
[TimeControl "5400+30"]

1. Nf3 {[%emt 0:00:26]} Nf6 {[%emt 0:00:26]} 2. c4 {[%emt 0:00:12]} e6 {[%emt 0:02:02]} 3. d4 {[%emt 0:00:08]} Bb4+ {[%emt 0:01:17]} 4. Bd2 {[%emt 0:00:11]} Bxd2+ {[%emt 0:01:18]} 5. Qxd2 {[%emt 0:00:20]} b6 {[%emt 0:02:37]} 6. g3 {[%emt 0:04:34]} Bb7 {[%emt 0:02:39]} 7. Bg2 {[%emt 0:00:02]} d6 {[%emt 0:02:52]} 8. O-O {[%emt 0:01:01]} O-O {[%emt 0:05:16]} 9. Qc2 {[%emt 0:00:34]} Be4 {[%emt 0:04:46]} 10. Qd1 {[%emt 0:06:11]} Nbd7 {[%emt 0:08:44]} 11. Nc3 {[%emt 0:00:25]} Bb7 {[%emt 0:00:19]} 12. Qc2 {[%emt 0:02:09]} c5 {[%emt 0:11:31]} 13. d5 {[%emt 0:05:31]} exd5 {[%emt 0:07:59]} 14. Nh4 {[%emt 0:00:30]} Ne5 {[%emt 0:08:14]} 15. cxd5 {[%emt 0:01:37]} Ng6 {[%emt 0:01:34]} 16. Nf5 {[%emt 0:02:53]} Ne7 {[%emt 0:02:53]} 17. Ne3 {[%emt 0:02:06]} Rb8 {[%emt 0:04:29]} 18. a4 {[%emt 0:02:29]} a6 {[%emt 0:02:55]} 19. Rfd1 {[%emt 0:03:49]} Qc7 {[%emt 0:05:57]} 20. Nc4 {[%emt 0:03:41]} Bc8 {[%emt 0:03:03]} 21. e4 {[%emt 0:01:05]} b5 {[%emt 0:10:45]} 22. axb5 {[%emt 0:00:08]} axb5 {[%emt 0:00:05]} 23. Ne3 {[%emt 0:00:39]} Ng6 {[%emt 0:00:37]} 24. b3 {[%emt 0:05:30]} Bd7 {[%emt 0:02:34]} 25. h3 {[%emt 0:01:30]} Qb6 {[%emt 0:00:44]} 26. Kh2 {[%emt 0:00:51]} h5 {[%emt 0:00:46]} 27. Ne2 {[%emt 0:01:39]} Ra8 {[%emt 0:01:55]} 28. Nf4 {[%emt 0:01:29]} Ne5 {[%emt 0:06:13]} 29. Qe2 {[%emt 0:01:40]} c4 {[%emt 0:00:00]} 30. bxc4 {[%emt 0:00:48]} bxc4 {[%emt 0:00:01]} 31. Rab1 {[%emt 0:01:13]} Qc5 {[%emt 0:00:18]} 32. Rbc1 {[%emt 0:00:08]} Bb5 {[%emt 0:00:33]} 33. Nxh5 {[%emt 0:00:49]} Nxh5 {[%emt 0:00:42]} 34. Qxh5 {[%emt 0:00:02]} Ra2 {[%emt 0:00:35]} 35. Qf5 {[%emt 0:10:25]} Bd7 {[%emt 0:00:43]} 36. Qf4 {[%emt 0:00:02]} Ng6 {[%emt 0:00:12]} 37. Qg5 {[%emt 0:00:57]} Rxf2 {[%emt 0:00:40]} 38. Nxc4 {[%emt 0:01:29]} Ra2 {[%emt 0:00:35]} 39. Qe3 {[%emt 0:01:29]} Qxe3 {[%emt 0:00:25]} 40. Nxe3 {[%emt 0:00:02]} Ne5 {[%emt 0:00:27]} 41. g4 {[%emt 0:00:15]} Rb8 {[%emt 0:00:24]} 42. Rb1 {[%emt 0:00:05]} Rba8 {[%emt 0:00:37]} 43. Rdc1 {[%emt 0:40:56]} Re2 {[%emt 0:00:31]} 44. Rc3 {[%emt 0:00:00]} Raa2 {[%emt 0:00:18]} 45. Kg3 {[%emt 0:00:00]} Rad2 {[%emt 0:00:32]} 46. Rg1 {[%emt 0:00:00]} Ra2 {[%emt 0:00:42]} 47. Bh1 {[%emt 0:00:00]} Ra4 {[%emt 0:00:34]} 48. Bf3 {[%emt 0:00:00]} Rb2 {[%emt 0:00:24]} 49. Rg2 {[%emt 0:00:00]} Rb1 {[%emt 0:00:18]} 50. Rd2 {[%emt 0:00:00]} g6 {[%emt 0:00:42]} 51. Bg2 {[%emt 0:00:00]} Bb5 {[%emt 0:00:27]} 52. g5 {[%emt 0:00:00]} Kg7 {[%emt 0:00:22]} 53. Ng4 {[%emt 0:00:00]} Nxg4 {[%emt 0:00:46]} 54. Kxg4 {[%emt 0:00:00]} Rg1 {[%emt 0:00:32]} 55. Kf4 {[%emt 0:00:00]} Bf1 {[%emt 0:00:32]} 56. Bf3 {[%emt 0:00:00]} Bb5 {[%emt 0:00:30]} 57. Rb2 {[%emt 0:00:00]} Bc4 {[%emt 0:00:22]} 58. Rd2 {[%emt 0:00:00]} f6 {[%emt 0:00:36]} 59. h4 {[%emt 0:00:00]} f5 {[%emt 0:00:35]} 60. Rd4 {[%emt 0:00:00]} fxe4 {[%emt 0:00:13]} 61. Bxe4 {[%emt 0:00:00]} Rf1+ {[%emt 0:00:39]} 62. Kg3 {[%emt 0:00:00]} Bb5 {[%emt 0:00:18]} 63. Rxa4 {[%emt 0:00:00]} Bxa4 {[%emt 0:01:25]} 64. Ra3 {[%emt 0:00:00]} Bb5 {[%emt 0:00:00]} 65. Rb3 {[%emt 0:00:00]} Bc4 {[%emt 0:00:00]} 66. Rb6 {[%emt 0:00:00]} Re1 {[%emt 0:00:02]} 67. Kf4 {[%emt 0:00:00]} Rf1+ {[%emt 0:00:08]} 68. Ke3 {[%emt 0:00:00]} Rd1 {[%emt 0:00:50]} 69. Rxd6 {[%emt 0:00:00]} Kf7 {[%emt 0:00:05]} 70. Rf6+ {[%emt 0:00:00]} Ke7 {[%emt 0:00:06]} 71. Re6+ {[%emt 0:00:00]} Kd7 {[%emt 0:00:07]} 72. Rxg6 {[%emt 0:00:00]} Bxd5 {[%emt 0:00:12]} 73. Bxd5 {[%emt 0:00:00]} Rxd5 {[%emt 0:00:04]} 74. Rf6 {[%emt 0:00:00]} Ke7 {[%emt 0:00:05]} 75. Kf3 {[%emt 0:00:00]} Rd4 {[%emt 0:00:24]} 76. Rf4 {[%emt 0:00:00]} Rd1 {[%emt 0:00:10]} 77. Kg4 {[%emt 0:00:00]} Rd5 {[%emt 0:00:05]} 78. g6 {[%emt 0:00:00]} Rd1 {[%emt 0:00:06]} 79. Kg5 {[%emt 0:00:00]} Rg1+ {[%emt 0:00:05]} 80. Kh6 {[%emt 0:00:00]} Ke6 {[%emt 0:00:09]} 81. h5 {[%emt 0:00:00]} Ke7 {[%emt 0:00:03]} 82. Kh7 {[%emt 0:00:00]} Rg5 {[%emt 0:00:03]} 83. h6 {[%emt 0:00:00]} Ke8 {[%emt 0:00:03]} 84. g7 {[%emt 0:00:00]} Ke7 {[%emt 0:00:26]} 85. g8=Q {[%emt 0:00:00]} Rg7+ {[%emt 0:00:14]} 86. Qxg7+ {[%emt 0:00:00]} Ke8 {[%emt 0:00:02]} 87. Rf8# {[%emt 0:00:00]} 1-0